fUSD/lending_fUSD_20250314
["ID","MTS","AMOUNT","RATE_DAILY","PERIOD"]
[356166249,1741985431847,-300.0,9.584e-05,2]
[356166250,1741985431856,-609715.44051306,9.585e-05,2]
[356166251,1741985431868,-5400.44094235,9.585e-05,2]
[356166252,1741985432002,-487.36280302,9.585e-05,2]
[356166257,1741985437452,-1330.55565,9.585e-05,2]
[356166258,1741985437511,-41358.53300018,9.585e-05,2]
[356166259,1741985437523,-527.34850392,9.585e-05,2]
[356166260,1741985437535,-364.04259866,9.585e-05,2]
[356166261,1741985437547,-987.54270914,9.585e-05,2]
[356166262,1741985437566,-4193.22936819,9.585e-05,2]
[356166263,1741985437622,-9487.32132093,9.585e-05,2]
[356166264,1741985437633,-12075.92852,9.585e-05,2]
[356166265,1741985437644,-979.01549778,9.585e-05,2]
[356166266,1741985437655,-346.26,9.585e-05,2]
[356166267,1741985437666,-793.65,9.585e-05,2]
[356166268,1741985437678,-360.06,9.585e-05,2]
[356166269,1741985437689,-180181.66322133,9.585e-05,2]
[356166270,1741985437701,-837.40192961,9.585e-05,2]
[356166271,1741985437712,-3451.34324685,9.585e-05,2]
[356166272,1741985437723,-3629.02413031,9.585e-05,2]
[356166273,1741985437740,-385.36424049,9.585e-05,2]
[356166274,1741985437752,-865.69,9.585e-05,2]
[356166277,1741985439779,-2763007.07749547,9.585e-05,2]
[356166278,1741985439789,-603.12741832,9.589e-05,2]
[356166279,1741985439798,-467.54881644,9.589e-05,2]
[356166280,1741985440112,-550.0,9.589e-05,2]
[356166281,1741985440129,-175.07724,9.593e-05,2]
[356166282,1741985440139,-41089.63607359,9.593e-05,2]
[356166283,1741985440150,-1400.0,9.6e-05,3]
[356166284,1741985440160,-299.99,9.6e-05,2]
[356166285,1741985440169,-5269.17,9.6e-05,2]
[356166286,1741985440178,-20597.4,9.6e-05,2]
[356166287,1741985440188,-9999.99,9.6e-05,2]
[356166288,1741985440198,-157.33,9.615e-05,2]
[356166289,1741985440209,-150.99,9.615e-05,2]
[356166290,1741985440219,-150.99,9.615e-05,2]
[356166291,1741985440228,-781.0,9.623e-05,2]
[356166292,1741985440238,-157.33,9.649e-05,2]
[356166293,1741985440248,-440.59,9.65e-05,2]
[356166294,1741985440258,-157.33,9.683e-05,2]
[356166295,1741985440267,-431.0,9.7e-05,2]
[356166296,1741985440277,-200.0,9.7e-05,3]
[356166297,1741985440286,-13840.08,9.7e-05,2]
[356166298,1741985440297,-157.33,9.717e-05,2]
[356166299,1741985440311,-157.33,9.751e-05,2]
[356166300,1741985440325,-157.33,9.785e-05,2]
[356166301,1741985440334,-603.12741832,9.795e-05,2]
[356166302,1741985440344,-467.54881644,9.795e-05,2]
[356166303,1741985440354,-41089.63607359,9.797e-05,2]
[356166304,1741985440363,-200.0,9.8e-05,3]
[356166305,1741985440373,-157.33,9.819e-05,2]
[356166306,1741985440382,-433.921571,9.83e-05,2]
[356166307,1741985440396,-157.33,9.853e-05,2]
[356166308,1741985440406,-881.49,9.858e-05,2]
[356166309,1741985440416,-10000.0,9.88e-05,2]
[356166310,1741985440426,-157.33,9.887e-05,2]
[356166311,1741985440435,-200.0,9.9e-05,3]
[356166312,1741985440444,-1000.0,9.91e-05,2]
[356166313,1741985440454,-952.09,9.916e-05,2]
[356166314,1741985440463,-157.33,9.921e-05,2]
[356166315,1741985440471,-157.33,9.955e-05,2]
[356166316,1741985440481,-44509.0,9.971e-05,2]
[356166317,1741985440491,-164.35557696,9.973e-05,2]
[356166318,1741985440500,-160.38157294,9.973e-05,2]
[356166319,1741985440510,-160.34948198,9.973e-05,2]
[356166320,1741985440520,-500.0,9.973e-05,2]
[356166321,1741985440530,-63557.08378174,9.98e-05,2]
[356166322,1741985440539,-157.33,9.989e-05,2]
[356166323,1741985440549,-47678.2790142,9.99e-05,2]
[356166324,1741985440558,-11836.7468556,9.993e-05,2]
[356166325,1741985440567,-9978.9517347,9.993e-05,2]
[356166326,1741985440577,-88972.11566065,9.994e-05,2]
[356166327,1741985440587,-1647978.11730329,0.0001,2]
[356166328,1741985440599,-3913.84295959,0.0001,2]
[356166329,1741985440610,-2101.0618,0.0001,2]
[356166330,1741985440621,-10733.52229452,0.0001,2]
[356166331,1741985440633,-318.72088959,0.0001,2]
[356166332,1741985441323,-616946.86203897,0.0001,2]
[356166333,1741985441342,-86738.0,0.0001,2]
[356166334,1741985441353,-12414.3567518,0.0001,2]
[356166338,1741985442624,-39777.05525851,0.0001,2]
[356166339,1741985442923,-25600.49998047,0.0001,2]
[356166340,1741985442934,-12739.59089149,0.0001,2]
[356166341,1741985442949,-3474.03812729,0.0001,2]
[356166342,1741985442960,-385.11499998,0.0001,2]
[356166350,1741985445643,-705.0,9.623e-05,2]
[356166352,1741985445652,-958.61736419,0.0001,2]
[356166354,1741985445664,-470.0,0.0001,2]
[356166355,1741985445675,-767347.12864908,0.0001,2]
[356166356,1741985445700,-418.18435819,0.0001,2]
[356166357,1741985445711,-2176.55578582,0.0001,2]
[356166358,1741985445763,-8849.1,0.0001,2]
[356166359,1741985445823,-421.105,0.0001,2]
[356166360,1741985553791,1003.31448819,9.485e-05,2]
[356166361,1741985553813,1496.68551181,9.485e-05,2]
[356166362,1741985651169,913.5,8.219e-05,2]
[356166363,1741985662156,1000.0,8.857e-05,2]
[356166364,1741985924885,250.0,8.88e-05,2]
[356166365,1741985984401,199.46,8.88e-05,2]
[356166369,1741986486258,169.33,8.872e-05,2]
[356166373,1741986631744,-500.0,9.584e-05,2]
[356166374,1741986631753,-367.23117525,9.584e-05,2]
[356166375,1741986631763,-111.78882475,9.726e-05,2]
[356166376,1741986631800,-308.21117525,9.726e-05,2]
[356166377,1741986631810,-500.0,9.726e-05,2]
[356166378,1741986631819,-150.0,9.727e-05,2]
[356166379,1741986631829,-150.0,9.729e-05,2]
[356166380,1741986631838,-150.0,9.737e-05,2]
[356166381,1741986631847,-150.0,9.738e-05,2]
[356166382,1741986631857,-150.0,9.741e-05,2]
[356166383,1741986631867,-150.0,9.742e-05,2]
[356166384,1741986631876,-150.0,9.744e-05,2]
[356166385,1741986631886,-66.47722476,9.744e-05,2]
[356166386,1741986631897,-83.52277524,9.744e-05,2]
[356166387,1741986631907,-150.0,9.744e-05,2]
[356166388,1741986631916,-150.0,9.748e-05,2]
[356166389,1741986631925,-1416.44,9.748e-05,2]
[356166390,1741986631935,-299.99,9.748e-05,2]
[356166391,1741986631944,-150.0,9.749e-05,2]
[356166392,1741986631954,-150.0,9.75e-05,2]
[356166393,1741986631963,-150.0,9.751e-05,2]
[356166394,1741986631973,-150.0,9.758e-05,2]
[356166395,1741986631982,-150.0,9.761e-05,2]
[356166396,1741986631991,-150.0,9.765e-05,2]
[356166397,1741986632001,-150.0,9.766e-05,2]
[356166398,1741986632011,-161.81672344,9.766e-05,2]
[356166399,1741986632020,-150.0,9.77e-05,2]
[356166400,1741986632029,-150.0,9.771e-05,2]
[356166401,1741986632039,-150.0,9.774e-05,2]
[356166402,1741986632048,-150.0,9.776e-05,2]
[356166403,1741986632058,-150.0,9.779e-05,2]
[356166404,1741986632068,-150.0,9.781e-05,2]
[356166405,1741986632077,-150.0,9.783e-05,2]
[356166406,1741986632086,-150.0,9.785e-05,2]
[356166407,1741986632096,-150.0,9.785e-05,2]
[356166408,1741986632105,-150.0,9.787e-05,2]
[356166409,1741986632115,-150.0,9.787e-05,2]
[356166410,1741986632125,-150.0,9.788e-05,2]
[356166411,1741986632134,-150.0,9.793e-05,2]
[356166412,1741986632144,-150.0,9.798e-05,2]
[356166413,1741986632153,-150.0,9.798e-05,2]
[356166414,1741986632162,-150.0,9.803e-05,2]
[356166415,1741986632172,-150.0,9.806e-05,2]
[356166416,1741986632181,-150.0,9.806e-05,2]
[356166417,1741986632191,-150.0,9.807e-05,2]
[356166418,1741986632200,-150.0,9.807e-05,2]
[356166419,1741986632210,-150.0,9.808e-05,2]
[356166420,1741986632220,-150.0,9.809e-05,2]
[356166421,1741986632230,-150.0,9.816e-05,2]
[356166422,1741986632240,-150.0,9.819e-05,2]
[356166423,1741986632250,-150.0,9.82e-05,2]
[356166424,1741986632259,-150.0,9.82e-05,2]
[356166425,1741986632269,-150.0,9.821e-05,2]
[356166426,1741986632280,-150.0,9.822e-05,2]
[356166427,1741986632289,-150.0,9.823e-05,2]
[356166428,1741986632299,-150.0,9.828e-05,2]
[356166430,1741986632308,-150.0,9.83e-05,2]
[356166432,1741986632317,-150.0,9.841e-05,2]
[356166434,1741986632327,-150.0,9.841e-05,2]
[356166437,1741986632337,-150.0,9.842e-05,2]
[356166440,1741986632346,-150.0,9.848e-05,2]
[356166443,1741986632355,-150.0,9.852e-05,2]
[356166446,1741986632364,-150.0,9.852e-05,2]
[356166449,1741986632374,-150.0,9.859e-05,2]
[356166452,1741986632383,-150.0,9.859e-05,2]
[356166455,1741986632393,-150.0,9.86e-05,2]
[356166458,1741986632402,-150.0,9.864e-05,2]
[356166461,1741986632412,-150.0,9.868e-05,2]
[356166464,1741986632421,-150.0,9.87e-05,2]
[356166467,1741986632431,-150.0,9.871e-05,2]
[356166472,1741986632449,-150.0,9.872e-05,2]
[356166475,1741986632460,-150.0,9.876e-05,2]
[356166478,1741986632471,-150.0,9.882e-05,2]
[356166481,1741986632481,-150.0,9.898e-05,2]
[356166484,1741986632490,-1800.43812597,9.9e-05,2]
[356166489,1741986632504,-1025.8,9.9e-05,2]
[356166492,1741986632528,-428.98676543,9.9e-05,2]
[356166533,1741986637876,-2522.65508502,9.9e-05,2]
[356166534,1741986637887,-1036.37932358,9.9e-05,2]
[356166535,1741986637897,-1000.0,9.9e-05,2]
[356166536,1741986637907,-601.5381,9.9e-05,2]
[356166537,1741986637917,-150.0,9.904e-05,2]
[356166538,1741986637927,-150.0,9.904e-05,2]
[356166539,1741986637937,-150.0,9.906e-05,2]
[356166540,1741986637947,-150.0,9.912e-05,2]
[356166541,1741986637957,-150.0,9.914e-05,2]
[356166542,1741986637966,-150.0,9.918e-05,2]
[356166543,1741986637975,-150.0,9.92e-05,2]
[356166544,1741986637986,-150.0,9.922e-05,2]
[356166545,1741986637995,-150.0,9.923e-05,2]
[356166546,1741986638005,-150.0,9.924e-05,2]
[356166547,1741986638015,-150.0,9.925e-05,2]
[356166548,1741986638025,-150.0,9.928e-05,2]
[356166549,1741986638034,-150.0,9.928e-05,2]
[356166550,1741986638333,-150.0,9.929e-05,2]
[356166551,1741986638343,-150.0,9.931e-05,2]
[356166552,1741986638353,-150.0,9.935e-05,2]
[356166553,1741986638363,-150.0,9.936e-05,2]
[356166554,1741986638373,-150.0,9.937e-05,2]
[356166555,1741986638382,-150.0,9.939e-05,2]
[356166556,1741986638392,-150.0,9.94e-05,2]
[356166557,1741986638402,-150.0,9.94e-05,2]
[356166558,1741986638412,-150.0,9.945e-05,2]
[356166559,1741986638421,-150.0,9.945e-05,2]
[356166560,1741986638431,-150.0,9.945e-05,2]
[356166561,1741986638441,-150.0,9.952e-05,2]
[356166562,1741986638450,-150.0,9.952e-05,2]
[356166563,1741986638460,-150.0,9.953e-05,2]
[356166564,1741986638470,-150.0,9.955e-05,2]
[356166565,1741986638479,-150.0,9.959e-05,2]
[356166566,1741986638489,-150.0,9.962e-05,2]
[356166567,1741986638498,-1000.0,9.964e-05,2]
[356166568,1741986638508,-150.0,9.964e-05,2]
[356166569,1741986638517,-150.0,9.966e-05,2]
[356166570,1741986638527,-150.0,9.972e-05,2]
[356166571,1741986638537,-150.0,9.974e-05,2]
[356166572,1741986638546,-150.0,9.974e-05,2]
[356166573,1741986638555,-150.0,9.978e-05,2]
[356166574,1741986638565,-150.0,9.98e-05,2]
[356166575,1741986638575,-150.0,9.982e-05,2]
[356166576,1741986638585,-150.0,9.995e-05,2]
[356166577,1741986638594,-150.0,9.997e-05,2]
[356166578,1741986638603,-828.87,9.999e-05,2]
[356166579,1741986638613,-502.35446004,9.999e-05,2]
[356166580,1741986638622,-502.35446004,9.999e-05,2]
[356166581,1741986638632,-502.35446004,9.999e-05,2]
[356166582,1741986638642,-502.35446004,9.999e-05,2]
[356166583,1741986638651,-502.35446004,9.999e-05,2]
[356166584,1741986638661,-502.35446004,9.999e-05,2]
[356166585,1741986638670,-502.35446004,9.999e-05,2]
[356166586,1741986638679,-502.35446004,9.999e-05,2]
[356166587,1741986638688,-502.35446004,9.999e-05,2]
[356166588,1741986638699,-502.35446004,9.999e-05,2]
[356166589,1741986638708,-502.35446004,9.999e-05,2]
[356166590,1741986638718,-502.35446004,9.999e-05,2]
[356166591,1741986638727,-502.35446004,9.999e-05,2]
[356166592,1741986638736,-502.35446004,9.999e-05,2]
[356166593,1741986638747,-502.35446004,9.999e-05,2]
[356166594,1741986638756,-502.35446004,9.999e-05,2]
[356166595,1741986638766,-114.13070136,9.999e-05,2]
[356166597,1741986640031,-388.22375868,9.999e-05,2]
[356166598,1741986640041,-502.35446004,9.999e-05,2]
[356166599,1741986640050,-502.35446004,9.999e-05,2]
[356166600,1741986640060,-502.35446004,9.999e-05,2]
[356166601,1741986640070,-535.84475737,9.999e-05,2]
[356166602,1741986640080,-535.84475737,9.999e-05,2]
[356166603,1741986640090,-535.84475737,9.999e-05,2]
[356166604,1741986640100,-535.84475737,9.999e-05,2]
[356166605,1741986640109,-535.84475737,9.999e-05,2]
[356166606,1741986640122,-535.84475737,9.999e-05,2]
[356166607,1741986640132,-535.84475737,9.999e-05,2]
[356166608,1741986640141,-535.84475737,9.999e-05,2]
[356166609,1741986640151,-535.84475737,9.999e-05,2]
[356166610,1741986640160,-632.0,0.0001,2]
[356166611,1741986640170,-223.59637939,0.0001,2]
[356166612,1741986640179,-190640.37716835,0.0001,2]
[356166613,1741986640189,-1023418.65601732,0.0001,2]
[356166614,1741986640199,-426345.5977831,0.0001,2]
[356166615,1741986640212,-1734.66323168,0.0001,2]
[356166616,1741986640223,-405.84481223,0.0001,2]
[356166617,1741986640235,-280.49170008,0.0001,2]
[356166618,1741986640248,-33319.9778123,0.0001,2]
[356166619,1741986640260,-405.555575,0.0001,2]
[356166620,1741986640271,-21719.58281239,0.0001,2]
[356166621,1741986640315,-1792.4000004,0.0001,2]
[356166630,1741986642799,-566.0,0.0001,2]
[356166631,1741986642808,-16311.44626585,0.0001,2]
[356166632,1741986642961,-881.0,0.0001,2]
[356166633,1741986645797,-330.07116945,9.9e-05,2]
[356166634,1741986646018,-2793.7,9.9e-05,2]
[356166635,1741986659504,250.0,9e-05,2]
[356166636,1741986672565,400.0,9.3e-05,3]
[356166637,1741986674714,800.0,9.4e-05,3]
[356166638,1741986676813,1300.0,9.5e-05,3]
[356166639,1741986726059,867.82,8.219e-05,2]
[356166640,1741986823578,1000.0,9.307e-05,2]
[356166641,1741987037206,250.0,9.319e-05,2]
[356166642,1741987059743,199.46,9.319e-05,2]
[356166643,1741987065237,169.34,9.393e-05,2]
[356166645,1741987431347,571.25,8.939e-05,2]
[356166648,1741987646289,300.0,9.3e-05,3]
[356166649,1741987648394,600.0,9.4e-05,3]
[356166650,1741987650699,1000.0,9.5e-05,3]
[356166652,1741987703666,-1300.0,9.6e-05,3]
[356166653,1741987704136,-803.36557773,9.7e-05,2]
[356166654,1741987704160,-1600.0,9.7e-05,3]
[356166655,1741987704187,-150.0,9.754e-05,2]
[356166656,1741987704212,-150.0,9.758e-05,2]
[356166657,1741987704238,-150.0,9.766e-05,2]
[356166658,1741987704260,-3041.53634002,9.8e-05,3]
[356166659,1741987704283,-300.0,9.8e-05,3]
[356166660,1741987704308,-150.0,9.801e-05,2]
[356166661,1741987704334,-150.0,9.801e-05,2]
[356166662,1741987704358,-236.32499576,9.801e-05,2]
[356166663,1741987704385,-150.0,9.804e-05,2]
[356166664,1741987704410,-150.0,9.829e-05,2]
[356166665,1741987704433,-299.99,9.829e-05,2]
[356166666,1741987704457,-150.0,9.843e-05,2]
[356166667,1741987704481,-150.0,9.846e-05,2]
[356166668,1741987704502,-500.0,9.89e-05,2]
[356166669,1741987704525,-150.0,9.894e-05,2]
[356166670,1741987704547,-418.78308649,9.9e-05,2]
[356166674,1741987733676,169.33,9.247e-05,2]
[356166692,1741987831890,-1877.84953695,9.828e-05,2]
[356166693,1741987832004,-310.10819482,9.828e-05,2]
[356166694,1741987832016,-4323.56624981,9.828e-05,2]
[356166695,1741987832026,-300.0,9.899e-05,2]
[356166696,1741987832035,-39.23271151,9.9e-05,2]
[356166708,1741987837802,-2500.0,9.88e-05,2]
[356166709,1741987837812,-541.984202,9.9e-05,2]
[356166710,1741987837821,-1484.2982,9.9e-05,2]
[356166711,1741987837831,-617.9353,9.9e-05,2]
[356166712,1741987837840,-561.91712958,9.9e-05,2]
[356166713,1741987837852,-1119.92206623,9.9e-05,2]
[356166714,1741987837917,-194.38970419,9.9e-05,2]
[356166715,1741987837927,-300.0,9.9e-05,3]
[356166716,1741987837936,-176.563,9.909e-05,2]
[356166717,1741987837946,-1498.701,9.909e-05,2]
[356166718,1741987837955,-6351.66039183,9.91e-05,2]
[356166719,1741987837967,-1109.2,9.91e-05,2]
[356166720,1741987837984,-4869.39126525,9.91e-05,2]
[356166721,1741987838040,-1055.390328,9.91e-05,2]
[356166722,1741987838052,-3979.7801504,9.91e-05,2]
[356166723,1741987838064,-5716.14343883,9.91e-05,2]
[356166725,1741987840237,-493.56483708,9.91e-05,2]
[356166726,1741987840247,-150.0,9.912e-05,2]
[356166727,1741987840257,-150.0,9.921e-05,2]
[356166728,1741987840267,-150.0,9.942e-05,2]
[356166729,1741987840276,-150.0,9.959e-05,2]
[356166730,1741987840286,-150.0,9.96e-05,2]
[356166731,1741987840295,-150.0,9.965e-05,2]
[356166732,1741987840305,-150.0,9.967e-05,2]
[356166733,1741987840315,-160.34948198,9.973e-05,2]
[356166734,1741987840324,-160.38157294,9.973e-05,2]
[356166735,1741987840334,-500.0,9.973e-05,2]
[356166736,1741987840344,-445.26198461,9.973e-05,2]
[356166737,1741987840356,-161.38673658,9.973e-05,2]
[356166738,1741987840366,-150.0,9.978e-05,2]
[356166739,1741987840375,-500.0,9.979e-05,2]
[356166740,1741987840386,-500.0,9.979e-05,2]
[356166741,1741987840396,-500.0,9.979e-05,2]
[356166742,1741987840406,-609.72619603,9.979e-05,2]
[356166743,1741987840415,-500.0,9.979e-05,2]
[356166744,1741987840425,-500.0,9.979e-05,2]
[356166745,1741987840435,-500.0,9.979e-05,2]
[356166746,1741987840444,-500.0,9.979e-05,2]
[356166747,1741987840453,-500.0,9.979e-05,2]
[356166748,1741987840463,-500.0,9.979e-05,2]
[356166749,1741987840472,-500.0,9.979e-05,2]
[356166750,1741987840482,-500.0,9.979e-05,2]
[356166751,1741987840491,-500.0,9.979e-05,2]
[356166752,1741987840501,-500.0,9.979e-05,2]
[356166753,1741987840510,-500.0,9.979e-05,2]
[356166754,1741987840520,-500.0,9.979e-05,2]
[356166755,1741987840529,-500.0,9.979e-05,2]
[356166756,1741987840539,-500.0,9.979e-05,2]
[356166757,1741987840548,-500.0,9.979e-05,2]
[356166758,1741987840558,-492.17532377,9.979e-05,2]
[356166759,1741987840567,-500.0,9.979e-05,2]
[356166760,1741987840576,-500.0,9.979e-05,2]
[356166761,1741987840585,-500.0,9.979e-05,2]
[356166762,1741987840594,-450.0,9.979e-05,2]
[356166763,1741987840606,-223.59637939,9.98e-05,2]
[356166765,1741987840615,-198519.23377045,9.98e-05,2]
[356166767,1741987840625,-1657228.03469923,9.98e-05,2]
[356166768,1741987840648,-2586.47180142,9.98e-05,2]
[356166769,1741987840659,-1085.55893968,9.98e-05,2]
[356166781,1741987842969,-4955.95916019,9.98e-05,2]
[356166782,1741987843026,-339.48609934,9.98e-05,2]
[356166783,1741987843142,-1509.09021663,9.98e-05,2]
[356166784,1741987843154,-369.12270208,9.98e-05,2]
[356166799,1741987845897,-693.68258874,9.98e-05,2]
[356166801,1741987846013,-363.19145679,9.98e-05,2]
[356166802,1741987846074,-7181.74606254,9.98e-05,2]
[356166856,1741987884919,500.0,9.2e-05,3]
[356166857,1741987886554,590.9291349,9.3e-05,3]
[356166858,1741987886578,409.0708651,9.3e-05,3]
[356166859,1741987888643,1500.0,9.4e-05,3]
[356166860,1741987890961,584.75362309,9.5e-05,3]
[356166861,1741987890986,1415.24637691,9.5e-05,3]
[356166862,1741987970502,525.649338,9.552e-05,2]
[356166863,1741987984883,1000.0,9.064e-05,2]
[356166864,1741988055243,157.4,9.064e-05,2]
[356166865,1741988200853,150.0,9.562e-05,7]
[356166866,1741988264158,178.07,9.406e-05,2]
[356166867,1741988316335,824.42,8.219e-05,2]
[356166868,1741988500199,250.0,9e-05,2]
[356166957,1741988854823,300.0,9.2e-05,3]
[356166958,1741988856977,600.0,9.3e-05,3]
[356166959,1741988859854,1000.0,9.4e-05,3]
[356166960,1741988861204,1300.0,9.5e-05,3]
[356166961,1741988887858,2449.21428509,9.552e-05,2]
[356166962,1741988887881,2037.35121491,9.552e-05,2]
[356166963,1741988946838,-1600.0,9.6e-05,3]
[356166964,1741988946861,-5513.4345,9.68e-05,2]
[356166965,1741988946884,-300.0,9.7e-05,3]
[356166966,1741988946906,-2586.5655,9.78e-05,2]
[356166967,1741988949533,-1549.0524,9.78e-05,2]
[356166968,1741988949555,-1455.2808754,9.78e-05,2]
[356166969,1741988949578,-300.0,9.8e-05,3]
[356166970,1741988949600,-150.0,9.862e-05,2]
[356166971,1741988949622,-6545.6667246,9.863e-05,2]
[356166972,1741988950275,-10000.0,9.863e-05,2]
[356166973,1741988950742,-3454.3232754,9.863e-05,2]
[356166974,1741988950765,-5673.6,9.863e-05,2]
[356166975,1741988950788,-492.74949138,9.863e-05,2]
[356166976,1741988950810,-306.30698101,9.863e-05,2]
[356166977,1741988950833,-73.02025221,9.864e-05,2]
[356166978,1741988951231,-10000.0,9.864e-05,2]
[356166979,1741988951961,-10000.0,9.864e-05,2]
[356166980,1741988952208,-10000.0,9.864e-05,2]
[356166981,1741988952713,-10000.0,9.864e-05,2]
[356166982,1741988953115,-10000.0,9.864e-05,2]
[356166983,1741988953618,-10000.0,9.864e-05,2]
[356166984,1741988953965,-10000.0,9.864e-05,2]
[356166985,1741988954522,-10000.0,9.864e-05,2]
[356166986,1741988954952,-9036.01731637,9.864e-05,2]
[356166987,1741988954975,-963.98268363,9.88e-05,2]
[356166988,1741988955392,-10000.0,9.88e-05,2]
[356166989,1741988955805,-10000.0,9.88e-05,2]
[356166990,1741988956288,-10000.0,9.88e-05,2]
[356166991,1741988956710,-10000.0,9.88e-05,2]
[356166992,1741988957072,-10000.0,9.88e-05,2]
[356166993,1741988957511,-10000.0,9.88e-05,2]
[356166994,1741988957961,-10000.0,9.88e-05,2]
[356166995,1741988958432,-10000.0,9.88e-05,2]
[356166996,1741988959579,-10000.0,9.88e-05,2]
[356166997,1741988959637,-10000.0,9.88e-05,2]
[356166998,1741988959716,-10000.0,9.88e-05,2]
[356166999,1741988960145,-10000.0,9.88e-05,2]
[356167000,1741988960713,-10000.0,9.88e-05,2]
[356167001,1741988962229,-10000.0,9.88e-05,2]
[356167002,1741988963474,-10000.0,9.88e-05,2]
[356167003,1741988978941,-2500.0,9.8e-05,2]
[356167004,1741988978964,-1749.0,9.88e-05,2]
[356167008,1741989032095,-15749.47486867,9.88e-05,2]
[356167009,1741989032219,-10737.0996192,9.88e-05,2]
[356167010,1741989032284,-24112.74979155,9.88e-05,2]
[356167011,1741989032408,-15933.385758,9.88e-05,2]
[356167025,1741989034691,1000.0,9.244e-05,2]
[356167031,1741989038097,-3852.06381311,9.88e-05,2]
[356167032,1741989038157,-16915.82675601,9.88e-05,2]
[356167033,1741989038168,-3407.85349379,9.88e-05,2]
[356167038,1741989038649,-4919.12808933,9.88e-05,2]
[356167039,1741989038660,-665.41197804,9.88e-05,2]
[356167040,1741989038672,-845.11533,9.88e-05,2]
[356167041,1741989038684,-1062.4557274,9.88e-05,2]
[356167042,1741989040395,-15.89798807,9.88e-05,2]
[356167043,1741989040417,-472385.0176242,9.88e-05,2]
[356167044,1741989040427,-31617.4404,9.88e-05,2]
[356167045,1741989040436,-349.0379,9.88e-05,2]
[356167046,1741989040446,-500.0,9.88e-05,2]
[356167047,1741989040455,-4608.9748,9.88e-05,2]
[356167048,1741989040465,-25684.878,9.88e-05,2]
[356167049,1741989040479,-10920.9523,9.88e-05,2]
[356167050,1741989040489,-252.1147,9.88e-05,2]
[356167051,1741989040498,-9300.8081,9.88e-05,2]
[356167052,1741989040508,-300.0,9.9e-05,3]
[356167053,1741989040518,-285.30317468,9.908e-05,2]
[356167054,1741989040528,-1198.961,9.959e-05,2]
[356167055,1741989040539,-1190.0,9.973e-05,2]
[356167056,1741989040552,-164.35557696,9.973e-05,2]
[356167057,1741989040564,-163.68896634,9.973e-05,2]
[356167058,1741989040574,-503.14764774,9.973e-05,2]
[356167059,1741989040583,-501.0441687,9.973e-05,2]
[356167060,1741989040592,-356.40085027,9.973e-05,2]
[356167061,1741989040602,-160.37860771,9.973e-05,2]
[356167062,1741989040611,-160.18370482,9.973e-05,2]
[356167063,1741989040625,-151.17790343,9.973e-05,2]
[356167064,1741989040635,-200.45758503,9.973e-05,2]
[356167065,1741989040644,-236.94257327,9.979e-05,2]
[356167066,1741989040654,-585687.53445768,9.98e-05,2]
[356167067,1741989040663,-200.0,9.98e-05,2]
[356167068,1741989040673,-247.06790445,9.98e-05,2]
[356167070,1741989040682,-167.20471877,9.98e-05,2]
[356167072,1741989040692,-200.0,9.98e-05,2]
[356167074,1741989040701,-47678.2790142,9.99e-05,2]
[356167075,1741989040711,-815.16,9.999e-05,2]
[356167076,1741989040720,-8462.2128086,9.999e-05,2]
[356167077,1741989040730,-2592.8207896,9.999e-05,2]
[356167078,1741989040740,-574.0,9.999e-05,2]
[356167079,1741989040749,-339.62503954,0.0001,2]
[356167080,1741989040759,-655613.93808196,0.0001,2]
[356167081,1741989040768,-5309935.64766219,0.0001,2]
[356167082,1741989040781,-2395.22987153,0.0001,2]
[356167083,1741989040799,-16754.40270934,0.0001,2]
[356167084,1741989041443,-3178.60298279,0.0001,2]
[356167085,1741989041455,-720.40581809,0.0001,2]
[356167086,1741989041466,-1615.980147,0.0001,2]
[356167108,1741989044496,-500.0,0.0001,2]
[356167109,1741989044508,-37816.0206429,0.0001,2]
[356167110,1741989044519,-41089.2278376,0.0001,2]
[356167111,1741989044530,-4106.00373502,0.0001,2]
[356167115,1741989046128,-2926.85604204,0.0001,2]
[356167116,1741989046305,-8461.12403007,0.0001,2]
[356167117,1741989046368,-479.78325027,0.0001,2]
[356167118,1741989046381,-1298.07906892,0.0001,2]
[356167179,1741989397132,150.58,9.244e-05,2]
[356167180,1741989537080,783.19,8.219e-05,2]
[356167181,1741989553184,457.0,9.226e-05,2]